fUST/lending_fUST_20240122
["ID","MTS","AMOUNT","RATE_DAILY","PERIOD"]
[312450819,1705885838339,-983.85832461,0.00028657,2]
[312450820,1705885838348,-1000.0,0.00028682,2]
[312450821,1705885838357,-1000.0,0.00028696,2]
[312450822,1705885838366,-988.18234493,0.000287,2]
[312450823,1705885838375,-300.0,0.000287,14]
[312450824,1705885838385,-1000.0,0.00028711,2]
[312450825,1705885838394,-166.666666,0.00028715,2]
[312450826,1705885838532,-1000.0,0.00028716,2]
[312450827,1705885838542,-1000.0,0.00028717,2]
[312450828,1705885838551,-790.83,0.00028722,2]
[312450829,1705885838560,-1000.0,0.00028724,2]
[312450830,1705885838570,-1000.0,0.00028745,2]
[312450831,1705885838579,-1000.0,0.00028765,2]
[312450832,1705885838588,-300.0,0.00028767,2]
[312450833,1705885838598,-261.52719804,0.00028767,2]
[312450834,1705885838607,-1824.95710943,0.00028767,2]
[312450835,1705885838616,-50802.35871913,0.00028767,7]
[312450836,1705885838627,-155.0,0.00028767,2]
[312450837,1705885838636,-850.366507,0.00028767,2]
[312450838,1705885838645,-1046.11952043,0.00028768,2]
[312450839,1705885838654,-312.4212651,0.00028796,2]
[312450840,1705885838663,-156.83638758,0.00028796,2]
[312450841,1705885838672,-873.86173983,0.00028797,2]
[312450842,1705885838681,-327.3065169,0.00028797,2]
[312450843,1705885838690,-425.69649895,0.00028797,2]
[312450844,1705885838700,-154.86062544,0.00028797,2]
[312450845,1705885838709,-1740.08077845,0.00028797,2]
[312450846,1705885838718,-154.86062544,0.00028797,2]
[312450847,1705885838727,-3963.07176261,0.00028797,2]
[312450848,1705885838735,-1570.51691987,0.00028797,2]
[312450849,1705885838745,-823.86653966,0.00028797,2]
[312450850,1705885838755,-1912.02144288,0.00028797,2]
[312450851,1705885838764,-4011.58774012,0.00028797,2]
[312450852,1705885838773,-1197.20181474,0.00028797,2]
[312450853,1705885838782,-178.65716453,0.00028797,2]
[312450854,1705885838792,-502.25631342,0.00028797,2]
[312450855,1705885838801,-529.11550296,0.00028797,2]
[312450856,1705885838810,-500.0,0.00028799,2]
[312450857,1705885838819,-500.0,0.00028799,2]
[312450858,1705885838829,-395.43017975,0.00028799,2]
[312450859,1705885838838,-500.0,0.00028799,2]
[312450860,1705885838847,-500.0,0.00028799,2]
[312450861,1705885838857,-500.0,0.00028799,2]
[312450862,1705885838866,-500.0,0.00028799,2]
[312450863,1705885838875,-500.0,0.00028799,2]
[312450864,1705885838884,-500.0,0.00028799,2]
[312450865,1705885838893,-500.0,0.00028799,2]
[312450866,1705885838902,-500.0,0.00028799,2]
[312450867,1705885838913,-500.0,0.00028799,2]
[312450868,1705885838922,-500.0,0.00028799,2]
[312450869,1705885838931,-418.0090288,0.00028799,2]
[312450870,1705885838941,-602.62324568,0.00028799,2]
[312450871,1705885838951,-500.0,0.00028799,2]
[312450872,1705885838960,-500.0,0.00028799,2]
[312450873,1705885838969,-500.0,0.00028799,2]
[312450874,1705885838978,-315.76326227,0.00028799,2]
[312450875,1705885838988,-500.0,0.00028799,2]
[312450876,1705885838998,-617.9201697,0.00028799,2]
[312450877,1705885839009,-500.0,0.00028799,2]
[312450878,1705885839019,-500.0,0.00028799,2]
[312450879,1705885839028,-500.0,0.00028799,2]
[312450880,1705885839038,-500.0,0.00028799,2]
[312450881,1705885839047,-500.0,0.00028799,2]
[312450882,1705885839056,-500.0,0.00028799,2]
[312450883,1705885839065,-500.0,0.00028799,2]
[312450884,1705885839074,-500.0,0.00028799,2]
[312450885,1705885839083,-500.0,0.00028799,2]
[312450886,1705885839092,-500.0,0.00028799,2]
[312450887,1705885839101,-500.0,0.00028799,2]
[312450888,1705885839110,-500.0,0.00028799,2]
[312450889,1705885839119,-500.0,0.00028799,2]
[312450890,1705885839128,-500.0,0.00028799,2]
[312450891,1705885839136,-500.0,0.00028799,2]
[312450892,1705885839145,-500.0,0.00028799,2]
[312450893,1705885839155,-500.0,0.00028799,2]
[312450894,1705885839164,-500.0,0.00028799,2]
[312450895,1705885839173,-408.81538286,0.00028799,2]
[312450896,1705885839182,-500.0,0.00028799,2]
[312450897,1705885839191,-490.02105885,0.00028799,2]
[312450898,1705885839200,-500.0,0.00028799,2]
[312450899,1705885839210,-500.0,0.00028799,2]
[312450900,1705885839219,-500.0,0.00028799,2]
[312450901,1705885839228,-500.0,0.00028799,2]
[312450902,1705885839237,-500.0,0.00028799,2]
[312450903,1705885839246,-500.0,0.00028799,2]
[312450904,1705885839256,-500.0,0.00028799,2]
[312450905,1705885839265,-500.0,0.00028799,2]
[312450906,1705885839273,-232.37572829,0.00028799,2]
[312450907,1705885839282,-500.0,0.00028799,2]
[312450908,1705885839291,-500.0,0.00028799,2]
[312450909,1705885839300,-500.0,0.00028799,2]
[312450910,1705885839309,-348340.35363816,0.000288,2]
[312450911,1705885839319,-2862.68658729,0.000288,3]
[312450912,1705885839328,-17266.85913413,0.000288,2]
[312450913,1705885839337,-150.109992,0.000288,2]
[312450914,1705885839346,-790.83,0.00028859,2]
[312450915,1705885839355,-150.0,0.00028895,2]
[312450916,1705885839364,-650.889086,0.00028908,2]
[312450917,1705885839373,-230.14331,0.00028908,2]
[312450918,1705885839382,-1572.635532,0.00028908,2]
[312450919,1705885839391,-1304.145425,0.00028908,2]
[312450920,1705885839400,-155.204557,0.00028908,2]
[312450921,1705885839409,-254.828753,0.00028908,2]
[312450922,1705885839418,-562.075125,0.00028908,2]
[312450923,1705885839427,-179.31992,0.00028908,2]
[312450924,1705885839436,-790.83,0.00028996,2]
[312450925,1705885839445,-4558.58,0.00028999,2]
[312450926,1705885839455,-4558.58,0.00028999,2]
[312450927,1705885839464,-4558.58,0.00028999,2]
[312450928,1705885839473,-4558.58,0.00028999,2]
[312450929,1705885839482,-4558.58,0.00028999,2]
[312450930,1705885839491,-4558.58,0.00028999,2]
[312450931,1705885839501,-4558.58,0.00028999,2]
[312450932,1705885839511,-4558.58,0.00028999,2]
[312450933,1705885839520,-4558.58,0.00028999,2]
[312450934,1705885839529,-1880.36577671,0.00029,2]
[312450935,1705885839538,-155.46981707,0.00029,2]
[312450936,1705885839546,-1500.0,0.00029,2]
[312450937,1705885839556,-1500.0,0.00029,2]
[312450938,1705885839565,-1500.0,0.00029,2]
[312450939,1705885839574,-1610.25,0.00029,2]
[312450940,1705885839583,-1500.0,0.00029,2]
[312450941,1705885839592,-1500.0,0.00029,2]
[312450942,1705885839602,-454.28035775,0.00029,2]
[312450943,1705885839611,-2134.10361197,0.00029,4]
[312450944,1705885839624,-3309.2979256,0.00029,4]
[312450964,1705885840866,-8006.8551555,0.00029,4]
[312450965,1705885840877,-2620.03271775,0.00029,4]
[312450992,1705885842923,-8030.06323525,0.00029,4]
[312450993,1705885842935,-542.56072663,0.00029,4]
[312451068,1705885846000,-506.51,0.00028799,2]
[312451070,1705885846012,-1482.62,0.0002899,3]
[312451072,1705885846022,-154.73694719,0.00028999,4]
[312451074,1705885846031,-333.78834814,0.00029,4]
[312451131,1705887032037,-154.73694719,0.00026096,4]
[312451135,1705887032047,-1197.69360057,0.00026097,2]
[312451138,1705887032057,-109.75761312,0.00026098,2]
[312451235,1705887038157,-218.72598148,0.00026098,2]
[312451236,1705887038168,-316.05161098,0.00026098,5]
[312451237,1705887038178,-1492.68630033,0.00026318,2]
[312451242,1705887038263,-441.65312714,0.00026318,2]
[312451246,1705887038376,-980.0,0.00026318,2]
[312451247,1705887038388,-21985.66057253,0.00026318,2]
[312451248,1705887038398,-665.72379282,0.000267,2]
[312451249,1705887038407,-400.0,0.00027397,2]
[312451250,1705887038416,-1020.27989701,0.00027787,5]
[312451251,1705887038427,-2417.07800145,0.00027787,5]
[312451252,1705887038436,-493.68695996,0.00027787,2]
[312451253,1705887038448,-646.03492322,0.00027787,2]
[312451254,1705887038457,-200.0,0.000278,4]
[312451255,1705887038466,-290.23210975,0.00028,2]
[312451256,1705887038476,-155.0,0.00028,2]
[312451257,1705887038485,-153.0,0.00028493,2]
[312451258,1705887038494,-153.0,0.00028493,2]
[312451259,1705887038504,-153.0,0.00028493,2]
[312451260,1705887038513,-500.0,0.00028707,2]
[312451261,1705887038522,-11486.67042308,0.00028708,2]
[312451262,1705887038540,-793.675406,0.00028767,2]
[312451263,1705887038552,-500.0,0.00028844,2]
[312451264,1705887038562,-200.0,0.00028948,15]
[312451265,1705887038572,-500.0,0.00028981,2]
[312451266,1705887038582,-154.98450155,0.00028996,2]
[312451267,1705887038592,-154.86062544,0.00028996,2]
[312451268,1705887038602,-164.31818866,0.00028996,2]
[312451269,1705887038611,-823.86653966,0.00028996,2]
[312451270,1705887038621,-550.34213895,0.00028996,2]
[312451271,1705887038630,-2862.68658729,0.00028996,3]
[312451272,1705887038640,-166.40741749,0.00028997,2]
[312451273,1705887038650,-2704.99617149,0.00028997,2]
[312451274,1705887038660,-316.39874573,0.00028997,2]
[312451275,1705887038670,-283.56232252,0.00028997,2]
[312451276,1705887038680,-285.61492557,0.00028998,2]
[312451277,1705887038690,-1570.51691987,0.00028998,2]
[312451278,1705887038702,-3963.07176261,0.00028998,2]
[312451279,1705887038712,-1912.02144288,0.00028998,2]
[312451280,1705887038721,-178.65716453,0.00028998,2]
[312451281,1705887038732,-529.11550296,0.00028998,2]
[312451282,1705887038742,-4011.58774012,0.00028998,2]
[312451283,1705887038752,-154.86062544,0.00028998,2]
[312451284,1705887038761,-155.2307004,0.00028998,2]
[312451285,1705887038771,-2247.17193981,0.00028998,2]
[312451286,1705887038781,-11128.49648348,0.00028998,2]
[312451287,1705887038791,-376.87692032,0.00028998,2]
[312451288,1705887038801,-4720.93650636,0.00028998,2]
[312451289,1705887038810,-502.25631342,0.00028999,2]
[312451290,1705887038820,-434.15,0.00028999,2]
[312451291,1705887038830,-434.15,0.00028999,2]
[312451292,1705887038841,-434.15,0.00028999,2]
[312451293,1705887038850,-434.15,0.00028999,2]
[312451294,1705887038860,-434.15,0.00028999,2]
[312451295,1705887038870,-465.07577316,0.00029,3]
[312451296,1705887038880,-109793.92741851,0.00029,4]
[312451297,1705887038889,-7541.68795718,0.00029,5]
[312451298,1705887038898,-154.73694719,0.00029,2]
[312451299,1705887039076,-1880.36577671,0.00029,2]
[312451300,1705887039086,-261.52719804,0.00029,2]
[312451301,1705887039095,-10295.56996507,0.00029,2]
[312451302,1705887039104,-300.0,0.00029,2]
[312451303,1705887039113,-2083.87339319,0.00029,2]
[312451304,1705887039123,-643.14902925,0.00029,2]
[312451305,1705887039132,-1622.608857,0.00029,2]
[312451306,1705887039141,-150.109992,0.00029,2]
[312451307,1705887039150,-1155.06304181,0.00029,7]
[312451308,1705887039159,-400.0,0.0002902,2]
[312451309,1705887039168,-500.0,0.00029118,2]
[312451310,1705887039178,-500.0,0.00029255,2]
[312451311,1705887039187,-650.889086,0.00029265,2]
[312451312,1705887039197,-230.14331,0.00029265,2]
[312451313,1705887039206,-1572.635532,0.00029265,2]
[312451314,1705887039215,-1304.145425,0.00029265,2]
[312451315,1705887039225,-155.204557,0.00029265,2]
[312451316,1705887039234,-254.828753,0.00029265,2]
[312451317,1705887039243,-562.075125,0.00029265,2]
[312451318,1705887039252,-179.31992,0.00029265,2]
[312451319,1705887039262,-168.21342972,0.00029314,2]
[312451320,1705887039271,-155.0,0.0002937,2]
[312451321,1705887039282,-159.511035,0.00029378,2]
[312451322,1705887039291,-153.516981,0.00029378,2]
[312451323,1705887039300,-253.46126,0.00029378,2]
[312451324,1705887039309,-166.67911,0.00029378,2]
[312451325,1705887039319,-159.48518,0.00029378,2]
[312451326,1705887039328,-500.0,0.00029392,2]
[312451327,1705887039337,-620.00012505,0.0002947,2]
[312451328,1705887039346,-1000.0,0.00029471,7]
[312451329,1705887039356,-201.59970554,0.000295,30]
[312451330,1705887039365,-500.0,0.00029529,2]
[312451331,1705887039375,-7411.17152339,0.00029581,2]
[312451332,1705887039384,-153.0,0.00029589,2]
[312451333,1705887039393,-153.0,0.00029589,2]
[312451334,1705887039402,-153.0,0.00029589,2]
[312451335,1705887039411,-153.0,0.00029589,2]
[312451336,1705887039421,-154.0789856,0.00029589,2]
[312451337,1705887039432,-650.889086,0.00029622,2]
[312451338,1705887039441,-230.14331,0.00029622,2]
[312451339,1705887039452,-1572.635532,0.00029622,2]
[312451340,1705887039461,-1304.145425,0.00029622,2]
[312451342,1705887039470,-155.204557,0.00029622,2]
[312451344,1705887039478,-254.828753,0.00029622,2]
[312451346,1705887039487,-562.075125,0.00029622,2]
[312451348,1705887039496,-179.31992,0.00029622,2]
[312451349,1705887039505,-793.675406,0.00029648,2]
[312451350,1705887039514,-500.0,0.00029666,2]
[312451351,1705887039523,-153.516981,0.00029745,2]
[312451352,1705887039533,-253.46126,0.00029745,2]
[312451353,1705887039542,-159.48518,0.00029745,2]
[312451354,1705887039551,-10727.14,0.00029789,2]
[312451355,1705887039560,-10727.13,0.00029789,2]
[312451356,1705887039569,-166133.10458275,0.0002979,7]
[312451357,1705887039578,-500.0,0.00029803,2]
[312451358,1705887039588,-150.12865429,0.00029854,2]
[312451359,1705887039597,-5000.0,0.00029863,2]
[312451360,1705887039606,-5000.0,0.00029863,2]
[312451361,1705887039616,-1588.15072745,0.00029863,2]
[312451424,1705887043296,-704.46347347,0.00029863,2]
[312451425,1705887043305,-500.0,0.0002994,2]
[312451426,1705887043316,-650.889086,0.00029979,2]
[312451427,1705887043326,-230.14331,0.00029979,2]
[312451428,1705887043335,-1572.635532,0.00029979,2]
[312451429,1705887043345,-1304.145425,0.00029979,2]
[312451430,1705887043354,-155.204557,0.00029979,2]
[312451431,1705887043364,-254.828753,0.00029979,2]
[312451432,1705887043375,-562.075125,0.00029979,2]
[312451433,1705887043384,-159.267972,0.00029979,2]
[312451434,1705887043393,-179.31992,0.00029979,2]
[312451435,1705887043401,-5000.0,0.0002999,7]
[312451436,1705887043410,-500.0,0.00029999,2]
[312451437,1705887043419,-395.43017975,0.00029999,2]
[312451438,1705887043428,-500.0,0.00029999,2]
[312451439,1705887043437,-494.01263531,0.00029999,2]
[312451440,1705887043448,-500.0,0.00029999,2]
[312451441,1705887043458,-500.0,0.00029999,2]
[312451442,1705887043467,-500.0,0.00029999,2]
[312451443,1705887043477,-500.0,0.00029999,2]
[312451444,1705887043486,-500.0,0.00029999,2]
[312451445,1705887043495,-500.0,0.00029999,2]
[312451447,1705887043505,-470.75210182,0.00029999,2]
[312451448,1705887043514,-500.0,0.00029999,2]
[312451450,1705887043524,-500.0,0.00029999,2]
[312451452,1705887043533,-289.45795736,0.00029999,2]
[312451454,1705887043542,-500.0,0.00029999,2]
[312451455,1705887043552,-500.0,0.00029999,2]
[312451457,1705887043561,-500.0,0.00029999,2]
[312451459,1705887043571,-500.0,0.00029999,2]
[312451461,1705887043580,-500.0,0.00029999,2]
[312451462,1705887043589,-493.8331284,0.00029999,2]
[312451463,1705887043598,-500.0,0.00029999,2]
[312451464,1705887043608,-500.0,0.00029999,2]
[312451466,1705887043617,-500.0,0.00029999,2]
[312451468,1705887043627,-500.0,0.00029999,2]
[312451470,1705887043636,-261.57394741,0.00029999,2]
[312451471,1705887043646,-500.0,0.00029999,2]
[312451473,1705887043655,-500.0,0.00029999,2]
[312451475,1705887043664,-500.0,0.00029999,2]
[312451476,1705887043673,-500.0,0.00029999,2]
[312451477,1705887043683,-500.0,0.00029999,2]
[312451478,1705887043692,-500.0,0.00029999,2]
[312451479,1705887043703,-250.80541728,0.00029999,2]
[312451480,1705887043712,-500.0,0.00029999,2]
[312451481,1705887043721,-300.0,0.00029999,2]
[312451482,1705887043730,-154.73694719,0.0003,4]
[312451483,1705887043739,-464.55162265,0.0003,2]
[312451484,1705887043749,-657.24587196,0.0003,3]
[312451485,1705887043758,-155.31771704,0.0003,2]
[312451486,1705887043768,-103.18328915,0.0003,4]
[312451487,1705887043780,-140.91693273,0.0003,4]
[312451488,1705887043790,-688.33469937,0.0003,4]
[312451489,1705887043799,-2370.80719439,0.0003,2]
[312451490,1705887043809,-41563.27289514,0.0003,2]
[312451491,1705887043817,-166.8143424,0.0003,2]
[312451492,1705887043827,-2193.2543805,0.0003,2]
[312451493,1705887043836,-2104.74678798,0.0003,4]
[312451494,1705887043846,-18591.34333764,0.0003,2]
[312451495,1705887043855,-700.02589994,0.0003,2]
[312451496,1705887043864,-500.0,0.0003,10]
[312451497,1705887043873,-23272.23392744,0.0003,2]
[312451498,1705887043882,-155.2340082,0.0003,4]
[312451499,1705887043892,-56139.9296753,0.0003,3]
[312451500,1705887043907,-2301.02048065,0.0003,3]
[312451501,1705887043916,-200.0,0.0003,2]
[312451502,1705887043926,-2437.88992488,0.0003,2]
[312451528,1705887046216,-1080.23294691,0.0003,2]
[312451529,1705887046228,-243.85395821,0.0003,2]
[312451530,1705887046238,-1500.06284187,0.0003,5]
[312451544,1705887478626,359.16682296,0.000231,7]
[312451547,1705887597797,150.0,0.0003,120]
[312451644,1705888232320,-154.73694719,0.00025096,4]
[312451658,1705888232468,-294.81692783,0.00025097,2]
[312451660,1705888232479,-1636.00914503,0.00025097,2]
[312451662,1705888232491,-497.35209618,0.00025097,2]
[312451747,1705888238285,-12336.59908786,0.00025097,2]
[312451748,1705888238295,-175.31260756,0.00025998,2]
[312451749,1705888238304,-792.8742706,0.00026096,2]
[312451750,1705888238314,-7942.56377123,0.00026097,2]
[312451751,1705888238324,-59921.66907935,0.00026098,7]
[312451752,1705888238333,-537.77751974,0.00026098,2]
[312451753,1705888238342,-767.05096973,0.00026098,2]
[312451754,1705888238352,-880.72033199,0.00026098,2]
[312451755,1705888238362,-500.0,0.00027397,2]
[312451756,1705888238371,-500.0,0.00027534,2]
[312451757,1705888238381,-500.0,0.00027671,2]
[312451758,1705888238391,-1925.87672612,0.0002778,5]
[312451759,1705888238400,-587.37541053,0.00027783,2]
[312451760,1705888238410,-500.0,0.00027808,2]
[312451761,1705888238420,-447.17146648,0.000279,2]
[312451762,1705888238429,-202.98,0.000279,4]
[312451763,1705888238439,-500.0,0.00027945,2]
[312451764,1705888238448,-290.32272867,0.00028,2]
[312451765,1705888238458,-500.0,0.00028082,2]
[312451766,1705888238468,-150.0,0.00028174,2]
[312451767,1705888238477,-150.086,0.00028174,2]
[312451768,1705888238488,-500.0,0.00028219,2]
[312451769,1705888238497,-500.0,0.00028356,2]
[312451770,1705888238506,-500.0,0.00028493,2]
[312451771,1705888238516,-9121.34550853,0.000285,4]
[312451772,1705888238525,-500.0,0.0002863,2]
[312451773,1705888238535,-343.030253,0.000287,14]
[312451774,1705888238544,-500.0,0.00028767,2]
[312451775,1705888238554,-998.07631522,0.000289,2]
[312451776,1705888238563,-500.0,0.00028904,2]
[312451777,1705888238573,-154.73694719,0.00029,2]
[312451778,1705888238583,-1880.79357717,0.00029,2]
[312451779,1705888238593,-155.0,0.00029,2]
[312451780,1705888238602,-154.68194604,0.00029028,2]
[312451781,1705888238612,-580.58981348,0.00029041,2]
[312451782,1705888238621,-576.0,0.000291,2]
[312451783,1705888238630,-154.68194604,0.00029132,2]
[312451784,1705888238642,-625.80298147,0.00029344,2]
[312451785,1705888238651,-194.23555966,0.00029471,2]
[312451786,1705888238663,-697.78418643,0.00029471,2]
[312451787,1705888238673,-239.63052787,0.00029471,2]
[312451788,1705888238682,-920.89949695,0.00029471,2]
[312451789,1705888238692,-274.48219583,0.00029471,2]
[312451790,1705888238702,-1000.0,0.00029471,7]
[312451791,1705888238711,-1000.0,0.00029471,7]
[312451792,1705888238721,-736.97250128,0.00029471,2]
[312451793,1705888238730,-1000.0,0.00029471,7]
[312451794,1705888238740,-167.57867912,0.00029471,2]
[312451795,1705888238749,-182.40907855,0.000296,2]
[312451796,1705888238758,-408.91692561,0.000297,2]
[312451797,1705888238767,-408.91692561,0.000297,2]
[312451798,1705888238777,-408.91692561,0.000297,2]
[312451799,1705888238786,-408.91692561,0.000297,2]
[312451800,1705888238795,-408.91692561,0.000297,2]
[312451801,1705888238804,-408.91692561,0.000297,2]
[312451802,1705888238813,-408.91692561,0.000297,2]
[312451803,1705888238823,-408.91692561,0.000297,2]
[312451804,1705888238832,-408.91692561,0.000297,2]
[312451805,1705888238842,-408.91692,0.000297,2]
[312451806,1705888238851,-847.56877835,0.00029789,14]
[312451807,1705888238861,-10760.37,0.00029899,2]
[312451808,1705888238870,-233.13376701,0.000299,3]
[312451809,1705888238880,-200173.846068,0.000299,3]
[312451810,1705888238891,-3140.65767969,0.00029998,2]
[312451811,1705888238900,-724.71548923,0.00029999,2]
[312451812,1705888238910,-18499.93715813,0.0003,5]
[312451813,1705888238919,-24418.37301019,0.0003,2]
[312451822,1705888241325,-687.852018,0.00028767,2]
[312451823,1705888241335,-687.852018,0.00029648,2]
[312451824,1705888241344,-4200.99590593,0.0003,2]
[312452001,1705888246332,-1600.97236985,0.0003,2]
[312452057,1705889348113,-154.73694719,0.00024556,4]
[312452058,1705889348134,-477.44557693,0.00024557,2]
[312452115,1705889432405,-154.73694719,0.00024551,4]
[312452117,1705889432414,-154.73694719,0.00024552,2]
[312452119,1705889432426,-154.73694719,0.00024553,2]
[312452120,1705889432435,-246.21885002,0.00024554,2]
[312452121,1705889432444,-426.92064329,0.00024556,2]
[312452122,1705889432461,-3587.11275057,0.00024556,2]
[312452123,1705889432471,-640.98853376,0.00024557,2]
[312452124,1705889432481,-2084.29033128,0.00024557,2]
[312452125,1705889432490,-10300.80544997,0.00024557,2]
[312452126,1705889432499,-5932.7654105,0.00026531,2]
[312452127,1705889432509,-185.41016331,0.00026899,2]
[312452128,1705889432518,-301.01534561,0.00026899,2]
[312452129,1705889432658,-1043.91,0.00027277,3]
[312452130,1705889432669,-155.43432454,0.00027285,2]
[312452131,1705889432679,-531.10752243,0.00027285,2]
[312452132,1705889432687,-503.90391072,0.00027285,2]
[312452133,1705889432697,-610.6104092,0.00027285,2]
[312452134,1705889432706,-155.31181995,0.00027285,2]
[312452135,1705889432715,-1987.66061957,0.00027285,2]
[312452136,1705889432725,-179.39980241,0.00027285,2]
[312452137,1705889432734,-285.97473465,0.00027285,2]
[312452138,1705889432743,-155.72873471,0.00027285,2]
[312452139,1705889432754,-827.24641726,0.00027285,2]
[312452140,1705889432763,-3979.52134233,0.00027285,2]
[312452141,1705889432771,-406.0215329,0.00027285,2]
[312452142,1705889432781,-1577.54105432,0.00027285,2]
[312452143,1705889432790,-11200.05200609,0.00027285,2]
[312452144,1705889432799,-164.99900097,0.00027285,2]
[312452145,1705889432808,-317.64534848,0.00027285,2]
[312452146,1705889432817,-155.4518065,0.00027285,2]
[312452147,1705889432827,-1568.97812144,0.00027285,2]
[312452160,1705889438503,-3179.34368864,0.00027285,2]
[312452161,1705889438513,-155.53078465,0.00027286,2]
[312452162,1705889438523,-2389.00277382,0.00027286,2]
[312452163,1705889438532,-2767.67442136,0.00027286,2]
[312452164,1705889438542,-24836.43863781,0.00027287,2]
[312452165,1705889438553,-63.56136219,0.00027287,2]
[312452166,1705889438562,-481.46918153,0.00027774,3]
[312452167,1705889438572,-14716.86209371,0.00027777,5]
[312452168,1705889438581,-869.93,0.0002789,3]
[312452169,1705889438591,-500.0,0.00027899,2]
[312452170,1705889438601,-465.6716536,0.000279,3]
[312452171,1705889438610,-298.11431099,0.000279,2]
[312452172,1705889438620,-118886.64687899,0.000279,2]
[312452173,1705889438629,-182.40907855,0.000279,2]
[312452174,1705889438638,-290.32272867,0.00028,2]
[312452175,1705889438647,-6545.18087169,0.00028,2]
[312452176,1705889438656,-500.0,0.00028036,2]
[312452177,1705889438667,-500.0,0.00028173,2]
[312452178,1705889438677,-168.6793787,0.00028235,2]
[312452179,1705889438685,-500.0,0.0002831,2]
[312452180,1705889438694,-7411.17152339,0.000284,2]
[312452181,1705889438703,-500.0,0.00028447,2]
[312452182,1705889438712,-203.8375547,0.00028493,2]
[312452183,1705889438721,-154.5721256,0.00028493,2]
[312452184,1705889438729,-398.2866842,0.00028493,2]
[312452185,1705889438739,-153.0,0.00028493,2]
[312452186,1705889438748,-9121.34550853,0.000285,4]
[312452187,1705889438757,-500.0,0.00028584,2]
[312452188,1705889438766,-500.0,0.00028721,2]
[312452189,1705889438775,-596.138415,0.00028767,2]
[312452190,1705889438784,-17584.32626513,0.000288,2]
[312452191,1705889438794,-2865.24520256,0.000288,3]
[312452192,1705889438802,-500.0,0.00028858,2]
[312452193,1705889438811,-580.58981348,0.00028995,2]
[312452194,1705889438820,-155.0,0.00028998,2]
[312452195,1705889438829,-155.91130008,0.00029,2]
[312452196,1705889438838,-1505.458178,0.00029,2]
[312452197,1705889438848,-1880.79357717,0.00029,2]
[312452198,1705889438857,-154.68194604,0.00029153,2]
[312452199,1705889438866,-153.6009505,0.00029315,2]
[312452200,1705889438875,-156.7251511,0.00029315,2]
[312452201,1705889438884,-199.1433421,0.00029315,2]
[312452202,1705889438894,-153.0,0.00029315,2]
[312452203,1705889438903,-153.0,0.00029315,2]
[312452204,1705889438912,-306.0,0.00029315,2]
[312452205,1705889438923,-153.0,0.00029315,2]
[312452206,1705889438932,-199.1433421,0.00029315,2]
[312452207,1705889438941,-199.1433421,0.00029315,2]
[312452208,1705889438950,-153.0,0.00029315,2]
[312452209,1705889438960,-625.52745865,0.00029345,2]
[312452210,1705889438969,-152.22977517,0.00029348,2]
[312452211,1705889438979,-154.68194604,0.00029443,2]
[312452212,1705889438987,-1000.0,0.00029471,7]
[312452213,1705889438996,-665.0,0.00029471,2]
[312452214,1705889439006,-1000.0,0.00029471,7]
[312452215,1705889439016,-578.31653522,0.00029471,2]
[312452216,1705889439028,-397.97831797,0.00029471,2]
[312452217,1705889439038,-1000.0,0.00029471,7]
[312452218,1705889439047,-3153.61088027,0.00029471,2]
[312452219,1705889439056,-946.08326408,0.00029471,2]
[312452220,1705889439066,-277.52903744,0.00029471,2]
[312452221,1705889439075,-201.59970554,0.000295,30]
[312452222,1705889439084,-576.0,0.000295,2]
[312452223,1705889439093,-596.138415,0.00029648,2]
[312452224,1705889439102,-1584.99516597,0.00029988,2]
[312452225,1705889439112,-278.0941099,0.00029989,2]
[312452226,1705889439122,-167.13580679,0.00029997,2]